[Event "Titled Tuesday Blitz February 15 Early 2022"]
[White "Bongo Akanga Ndjila, Barthelemy"]
[Black "Vifleemskaia, Svetlana"]
[WhiteFideId "10609431"]
[BlackFideId "4129490"]
[WhiteElo "1803"]
[BlackElo "1901"]
[Result "0-1"]
[Round "04"]
[TimeControl "180+1"]
[Date "2022.02.15"]
[WhiteClock "0:00:38"]
[BlackClock "0:00:54"]

1. d4 {[%clk 0:03:00]}  Nf6 {[%clk 0:02:55]} 2. c4 {[%clk 0:02:58]}  e6 {[%clk 0:02:55]} 3. Nf3 {[%clk 0:02:56]}  Bb4+ {[%clk 0:02:54]} 4. Bd2 {[%clk 0:02:54]}  Qe7 {[%clk 0:02:53]} 5. g3 {[%clk 0:02:54]}  O-O {[%clk 0:02:53]} 6. Bg2 {[%clk 0:02:54]}  Nc6 {[%clk 0:02:53]} 7. O-O {[%clk 0:02:53]}  Bxd2 {[%clk 0:02:52]} 8. Qxd2 {[%clk 0:02:52]}  d6 {[%clk 0:02:52]} 9. Nc3 {[%clk 0:02:51]}  h6 {[%clk 0:02:48]} 10. Rfe1 {[%clk 0:02:50]}  Rd8 {[%clk 0:02:47]} 11. e4 {[%clk 0:02:47]}  e5 {[%clk 0:02:47]} 12. d5 {[%clk 0:02:44]}  Nb8 {[%clk 0:02:46]} 13. Nh4 {[%clk 0:02:35]}  a5 {[%clk 0:02:43]} 14. Nb5 {[%clk 0:02:31]}  b6 {[%clk 0:02:36]} 15. Rac1 {[%clk 0:02:31]}  Na6 {[%clk 0:02:36]} 16. a3 {[%clk 0:02:30]}  Bd7 {[%clk 0:02:32]} 17. b4 {[%clk 0:02:29]}  axb4 {[%clk 0:02:20]} 18. axb4 {[%clk 0:02:28]}  g5 {[%clk 0:02:17]} 19. Nf5 {[%clk 0:02:25]}  Bxf5 {[%clk 0:02:16]} 20. exf5 {[%clk 0:02:25]}  Kg7 {[%clk 0:02:15]} 21. Be4 {[%clk 0:02:18]}  Qd7 {[%clk 0:02:08]} 22. f3 {[%clk 0:02:10]}  Nb8 {[%clk 0:01:58]} 23. Ra1 {[%clk 0:02:01]}  Rxa1 {[%clk 0:01:56]} 24. Rxa1 {[%clk 0:02:01]}  Nxe4 {[%clk 0:01:49]} 25. fxe4 {[%clk 0:01:59]}  c6 {[%clk 0:01:49]} 26. Ra7 {[%clk 0:01:54]}  Qe8 {[%clk 0:01:36]} 27. Nc7 {[%clk 0:01:45]}  Qg8 {[%clk 0:01:22]} 28. Ne6+ {[%clk 0:01:42]}  Kf6 {[%clk 0:01:22]} 29. Nxd8 {[%clk 0:01:36]}  Qxd8 {[%clk 0:01:23]} 30. h4 {[%clk 0:01:23]}  b5 {[%clk 0:01:20]} 31. hxg5+ {[%clk 0:01:20]}  hxg5 {[%clk 0:01:19]} 32. Qc3 {[%clk 0:01:02]}  Qb6+ {[%clk 0:01:17]} 33. c5 {[%clk 0:00:59]}  Qxa7 {[%clk 0:01:15]} 34. Kg2 {[%clk 0:00:55]}  Qc7 {[%clk 0:01:13]} 35. Kh2 {[%clk 0:00:51]}  Na6 {[%clk 0:01:10]} 36. Kg2 {[%clk 0:00:52]}  cxd5 {[%clk 0:01:08]} 37. Kh3 {[%clk 0:00:53]}  dxc5 {[%clk 0:01:06]} 38. exd5 {[%clk 0:00:54]}  cxb4 {[%clk 0:01:04]} 39. Qe3 {[%clk 0:00:48]}  Qc5 {[%clk 0:00:59]} 40. Qe4 {[%clk 0:00:42]}  Qd4 {[%clk 0:00:58]} 41. Qf3 {[%clk 0:00:37]}  g4+ {[%clk 0:00:56]} 42. Qxg4 {[%clk 0:00:36]}  Qxg4+ {[%clk 0:00:56]} 43. Kxg4 {[%clk 0:00:37]}  b3 {[%clk 0:00:56]} 44. Kh4 {[%clk 0:00:35]}  b2 {[%clk 0:00:56]} 45. g4 {[%clk 0:00:36]}  b1=Q {[%clk 0:00:55]} 46. g5+ {[%clk 0:00:37]}  Kxf5 {[%clk 0:00:55]} 47. Kh5 {[%clk 0:00:38]}  Qh1# {[%clk 0:00:54]} 0-1


[Site "https://www.chess.com"]

[Event "Titled Tuesday Blitz February 15 Early 2022"]
[White "Borisova, Ekaterina"]
[Black "Paravyan, David"]
[WhiteFideId "34124184"]
[BlackFideId "4194985"]
[WhiteElo "2034"]
[BlackElo "2569"]
[Result "0-1"]
[Round "04"]
[TimeControl "180+1"]
[Date "2022.02.15"]
[WhiteClock "0:00:20"]
[BlackClock "0:00:07"]

1. d4 {[%clk 0:03:00]}  Nf6 {[%clk 0:02:40]} 2. c4 {[%clk 0:03:00]}  g6 {[%clk 0:02:40]} 3. Nc3 {[%clk 0:03:00]}  d5 {[%clk 0:02:40]} 4. cxd5 {[%clk 0:03:01]}  Nxd5 {[%clk 0:02:41]} 5. e4 {[%clk 0:03:01]}  Nxc3 {[%clk 0:02:41]} 6. bxc3 {[%clk 0:03:02]}  Bg7 {[%clk 0:02:41]} 7. Be3 {[%clk 0:03:03]}  c5 {[%clk 0:02:41]} 8. Qd2 {[%clk 0:03:03]}  cxd4 {[%clk 0:02:32]} 9. cxd4 {[%clk 0:03:03]}  O-O {[%clk 0:02:32]} 10. Nf3 {[%clk 0:02:53]}  Bg4 {[%clk 0:02:31]} 11. Rc1 {[%clk 0:02:39]}  Bxf3 {[%clk 0:02:27]} 12. gxf3 {[%clk 0:02:39]}  e6 {[%clk 0:02:27]} 13. Bb5 {[%clk 0:02:25]}  a6 {[%clk 0:02:15]} 14. Ba4 {[%clk 0:02:25]}  Nc6 {[%clk 0:01:32]} 15. Bxc6 {[%clk 0:02:21]}  bxc6 {[%clk 0:01:33]} 16. Rxc6 {[%clk 0:02:13]}  Qd7 {[%clk 0:01:31]} 17. Rc3 {[%clk 0:02:01]}  Qb5 {[%clk 0:01:29]} 18. Rd3 {[%clk 0:01:59]}  Qb1+ {[%clk 0:01:25]} 19. Qd1 {[%clk 0:01:58]}  Qxa2 {[%clk 0:01:25]} 20. O-O {[%clk 0:01:58]}  a5 {[%clk 0:01:20]} 21. Qd2 {[%clk 0:01:35]}  Qxd2 {[%clk 0:01:14]} 22. Rxd2 {[%clk 0:01:32]}  Rfc8 {[%clk 0:01:07]} 23. Ra1 {[%clk 0:01:30]}  a4 {[%clk 0:01:06]} 24. Raa2 {[%clk 0:01:19]}  Rc4 {[%clk 0:00:59]} 25. d5 {[%clk 0:01:12]}  exd5 {[%clk 0:00:59]} 26. exd5 {[%clk 0:01:10]}  Rd8 {[%clk 0:00:52]} 27. d6 {[%clk 0:00:43]}  Rd7 {[%clk 0:00:51]} 28. Bb6 {[%clk 0:00:41]}  Bc3 {[%clk 0:00:27]} 29. Rd3 {[%clk 0:00:36]}  Be5 {[%clk 0:00:18]} 30. Rd5 {[%clk 0:00:33]}  f6 {[%clk 0:00:16]} 31. Ra5 {[%clk 0:00:19]}  Rxd6 {[%clk 0:00:14]} 32. Be3 {[%clk 0:00:20]}  Rh4 {[%clk 0:00:08]} 33. R5xa4 {[%clk 0:00:20]}  Rd1+ {[%clk 0:00:07]} 0-1


[Site "https://www.chess.com"]

[Event "Titled Tuesday Blitz February 15 Early 2022"]
[White "Bortnyk, Olexandr"]
[Black "Kezin, Roman"]
[WhiteFideId "14120828"]
[BlackFideId "24124621"]
[WhiteElo "2723"]
[BlackElo "2509"]
[Result "1/2-1/2"]
[Round "04"]
[TimeControl "180+1"]
[Date "2022.02.15"]
[WhiteClock "0:00:08"]
[BlackClock "0:00:06"]

1. e4 {[%clk 0:03:00]}  c5 {[%clk 0:02:57]} 2. c3 {[%clk 0:02:57]}  d5 {[%clk 0:02:53]} 3. exd5 {[%clk 0:02:58]}  Nf6 {[%clk 0:02:53]} 4. Nf3 {[%clk 0:02:35]}  Nxd5 {[%clk 0:02:50]} 5. Bc4 {[%clk 0:02:33]}  Nb6 {[%clk 0:02:01]} 6. Bb3 {[%clk 0:02:30]}  Nc6 {[%clk 0:02:01]} 7. O-O {[%clk 0:02:28]}  Bf5 {[%clk 0:02:00]} 8. d4 {[%clk 0:02:16]}  cxd4 {[%clk 0:01:49]} 9. cxd4 {[%clk 0:02:02]}  e6 {[%clk 0:01:49]} 10. Nc3 {[%clk 0:02:02]}  Be7 {[%clk 0:01:49]} 11. d5 {[%clk 0:01:37]}  exd5 {[%clk 0:01:50]} 12. Nxd5 {[%clk 0:01:34]}  Nxd5 {[%clk 0:01:49]} 13. Bxd5 {[%clk 0:01:05]}  O-O {[%clk 0:01:48]} 14. Bxc6 {[%clk 0:00:46]}  bxc6 {[%clk 0:01:42]} 15. Qa4 {[%clk 0:00:40]}  Qb6 {[%clk 0:01:24]} 16. Re1 {[%clk 0:00:28]}  Bf6 {[%clk 0:01:21]} 17. Be3 {[%clk 0:00:28]}  Qxb2 {[%clk 0:01:18]} 18. Bd4 {[%clk 0:00:29]}  Qb5 {[%clk 0:00:57]} 19. Qxb5 {[%clk 0:00:17]}  cxb5 {[%clk 0:00:58]} 20. Bxf6 {[%clk 0:00:18]}  gxf6 {[%clk 0:00:59]} 21. Nd4 {[%clk 0:00:18]}  Bd7 {[%clk 0:01:00]} 22. Re7 {[%clk 0:00:17]}  Rfd8 {[%clk 0:00:59]} 23. h4 {[%clk 0:00:14]}  Kf8 {[%clk 0:00:58]} 24. Rae1 {[%clk 0:00:12]}  Re8 {[%clk 0:00:56]} 25. Rxe8+ {[%clk 0:00:09]}  Rxe8 {[%clk 0:00:57]} 26. Rd1 {[%clk 0:00:10]}  Rc8 {[%clk 0:00:48]} 27. f3 {[%clk 0:00:06]}  b4 {[%clk 0:00:45]} 28. Rd2 {[%clk 0:00:04]}  Rb8 {[%clk 0:00:39]} 29. Kf2 {[%clk 0:00:04]}  a5 {[%clk 0:00:39]} 30. Nb3 {[%clk 0:00:04]}  Be6 {[%clk 0:00:36]} 31. Nxa5 {[%clk 0:00:05]}  Ra8 {[%clk 0:00:35]} 32. Nc6 {[%clk 0:00:05]}  Rxa2 {[%clk 0:00:28]} 33. Rxa2 {[%clk 0:00:05]}  Bxa2 {[%clk 0:00:29]} 34. Nxb4 {[%clk 0:00:06]}  Bc4 {[%clk 0:00:29]} 35. Ke3 {[%clk 0:00:06]}  Ke7 {[%clk 0:00:29]} 36. Kf4 {[%clk 0:00:06]}  Be6 {[%clk 0:00:24]} 37. Nc6+ {[%clk 0:00:06]}  Kf8 {[%clk 0:00:24]} 38. Nd4 {[%clk 0:00:06]}  Kg7 {[%clk 0:00:24]} 39. g4 {[%clk 0:00:04]}  h6 {[%clk 0:00:19]} 40. h5 {[%clk 0:00:02]}  Kh7 {[%clk 0:00:17]} 41. Nxe6 {[%clk 0:00:02]}  fxe6 {[%clk 0:00:17]} 42. Ke4 {[%clk 0:00:03]}  Kg7 {[%clk 0:00:17]} 43. Kd4 {[%clk 0:00:04]}  Kf7 {[%clk 0:00:16]} 44. Kc5 {[%clk 0:00:04]}  Ke7 {[%clk 0:00:08]} 45. Kc6 {[%clk 0:00:04]}  e5 {[%clk 0:00:07]} 46. Kd5 {[%clk 0:00:03]}  Kd7 {[%clk 0:00:07]} 47. Kc5 {[%clk 0:00:02]}  Ke6 {[%clk 0:00:06]} 48. Kc4 {[%clk 0:00:02]}  Kd6 {[%clk 0:00:06]} 49. Kd3 {[%clk 0:00:03]}  Kd5 {[%clk 0:00:05]} 50. Ke3 {[%clk 0:00:03]}  Kd6 {[%clk 0:00:02]} 51. f4 {[%clk 0:00:03]}  exf4+ {[%clk 0:00:02]} 52. Kxf4 {[%clk 0:00:04]}  Ke6 {[%clk 0:00:03]} 53. Ke4 {[%clk 0:00:04]}  Ke7 {[%clk 0:00:03]} 54. Kd5 {[%clk 0:00:05]}  Kd7 {[%clk 0:00:03]} 55. Kd4 {[%clk 0:00:05]}  Kd6 {[%clk 0:00:04]} 56. Ke4 {[%clk 0:00:05]}  Ke6 {[%clk 0:00:04]} 57. Kf4 {[%clk 0:00:06]}  Ke7 {[%clk 0:00:04]} 58. Kf5 {[%clk 0:00:07]}  Kf7 {[%clk 0:00:05]} 59. Ke4 {[%clk 0:00:07]}  Ke6 {[%clk 0:00:05]} 60. Kd4 {[%clk 0:00:08]}  Kd6 {[%clk 0:00:06]} 61. Ke4 {[%clk 0:00:08]}  Ke6 {[%clk 0:00:06]} 1/2-1/2


[Site "https://www.chess.com"]

[Event "Titled Tuesday Blitz February 15 Early 2022"]
[White "Boruchovsky, Avital"]
[Black "Ratnakaran, K."]
[WhiteFideId "2800055"]
[BlackFideId "5005507"]
[WhiteElo "2469"]
[BlackElo "2391"]
[Result "1-0"]
[Round "04"]
[TimeControl "180+1"]
[Date "2022.02.15"]
[WhiteClock "0:00:28"]
[BlackClock "0:00:06"]

1. Nf3 {[%clk 0:03:00]}  g6 {[%clk 0:02:57]} 2. e4 {[%clk 0:02:56]}  Bg7 {[%clk 0:02:56]} 3. d4 {[%clk 0:02:57]}  c6 {[%clk 0:02:56]} 4. c3 {[%clk 0:02:54]}  d5 {[%clk 0:02:56]} 5. e5 {[%clk 0:02:52]}  Nh6 {[%clk 0:02:55]} 6. Bd3 {[%clk 0:02:52]}  O-O {[%clk 0:02:53]} 7. O-O {[%clk 0:02:52]}  f5 {[%clk 0:02:52]} 8. Ng5 {[%clk 0:02:43]}  f4 {[%clk 0:02:49]} 9. e6 {[%clk 0:02:37]}  Qd6 {[%clk 0:02:43]} 10. Re1 {[%clk 0:02:33]}  Bf6 {[%clk 0:02:41]} 11. Nxh7 {[%clk 0:02:23]}  Kxh7 {[%clk 0:02:33]} 12. Qh5 {[%clk 0:02:20]}  Rg8 {[%clk 0:02:33]} 13. g3 {[%clk 0:02:20]}  Bxe6 {[%clk 0:01:53]} 14. Bxf4 {[%clk 0:02:18]}  Qxf4 {[%clk 0:01:52]} 15. gxf4 {[%clk 0:02:19]}  Bf5 {[%clk 0:01:52]} 16. Qf3 {[%clk 0:02:09]}  Nd7 {[%clk 0:01:45]} 17. Nd2 {[%clk 0:02:08]}  Rg7 {[%clk 0:01:44]} 18. Nf1 {[%clk 0:02:08]}  Rh8 {[%clk 0:01:40]} 19. h3 {[%clk 0:01:52]}  Kg8 {[%clk 0:01:39]} 20. Re3 {[%clk 0:01:46]}  Rgh7 {[%clk 0:01:37]} 21. Qg2 {[%clk 0:01:42]}  Kf7 {[%clk 0:01:32]} 22. Ng3 {[%clk 0:01:37]}  Bxd3 {[%clk 0:01:27]} 23. Rxd3 {[%clk 0:01:38]}  Nf8 {[%clk 0:01:26]} 24. Re1 {[%clk 0:01:35]}  Ne6 {[%clk 0:01:25]} 25. Qf3 {[%clk 0:01:29]}  Nf5 {[%clk 0:01:20]} 26. Nxf5 {[%clk 0:01:28]}  gxf5 {[%clk 0:01:20]} 27. Kf1 {[%clk 0:01:21]}  Rh4 {[%clk 0:01:18]} 28. Rxe6 {[%clk 0:01:12]}  Kxe6 {[%clk 0:01:16]} 29. b3 {[%clk 0:01:02]}  Kf7 {[%clk 0:01:13]} 30. c4 {[%clk 0:01:01]}  e6 {[%clk 0:01:13]} 31. cxd5 {[%clk 0:00:59]}  exd5 {[%clk 0:01:12]} 32. b4 {[%clk 0:00:57]}  Be7 {[%clk 0:01:00]} 33. b5 {[%clk 0:00:57]}  Bd6 {[%clk 0:01:00]} 34. bxc6 {[%clk 0:00:57]}  bxc6 {[%clk 0:01:01]} 35. Ra3 {[%clk 0:00:56]}  Kf6 {[%clk 0:00:48]} 36. Ra6 {[%clk 0:00:51]}  Rxh3 {[%clk 0:00:47]} 37. Qg2 {[%clk 0:00:47]}  Rh1+ {[%clk 0:00:21]} 38. Ke2 {[%clk 0:00:46]}  Re8+ {[%clk 0:00:21]} 39. Kd3 {[%clk 0:00:46]}  Rd1+ {[%clk 0:00:14]} 40. Kc2 {[%clk 0:00:45]}  Rxd4 {[%clk 0:00:14]} 41. Qg5+ {[%clk 0:00:38]}  Ke6 {[%clk 0:00:14]} 42. Qg6+ {[%clk 0:00:38]}  Kd7 {[%clk 0:00:13]} 43. Rxa7+ {[%clk 0:00:38]}  Bc7 {[%clk 0:00:13]} 44. Qf7+ {[%clk 0:00:31]}  Re7 {[%clk 0:00:12]} 45. Rxc7+ {[%clk 0:00:31]}  Kxc7 {[%clk 0:00:12]} 46. Qxe7+ {[%clk 0:00:31]}  Kb6 {[%clk 0:00:13]} 47. Qe5 {[%clk 0:00:31]}  Rc4+ {[%clk 0:00:12]} 48. Kb3 {[%clk 0:00:31]}  Re4 {[%clk 0:00:11]} 49. Qxf5 {[%clk 0:00:31]}  Re2 {[%clk 0:00:11]} 50. Qf8 {[%clk 0:00:29]}  Rxf2 {[%clk 0:00:09]} 51. f5 {[%clk 0:00:29]}  c5 {[%clk 0:00:06]} 52. Qd6+ {[%clk 0:00:28]}  Kb5 {[%clk 0:00:06]} 53. a4+ {[%clk 0:00:28]} 1-0


[Site "https://www.chess.com"]

[Event "Titled Tuesday Blitz February 15 Early 2022"]
[White "Brodowski, Piotr"]
[Black "Lazavik, Denis"]
[WhiteFideId "1124480"]
[BlackFideId "13515110"]
[WhiteElo "2422"]
[BlackElo "2436"]
[Result "0-1"]
[Round "04"]
[TimeControl "180+1"]
[Date "2022.02.15"]
[WhiteClock "0:00:07"]
[BlackClock "0:00:12"]

1. c4 {[%clk 0:02:59]}  f5 {[%clk 0:02:58]} 2. Nc3 {[%clk 0:02:58]}  Nf6 {[%clk 0:02:58]} 3. d3 {[%clk 0:02:59]}  g6 {[%clk 0:02:56]} 4. e4 {[%clk 0:02:58]}  d6 {[%clk 0:02:55]} 5. exf5 {[%clk 0:02:56]}  Bxf5 {[%clk 0:02:55]} 6. Nf3 {[%clk 0:02:55]}  Bg7 {[%clk 0:02:55]} 7. d4 {[%clk 0:02:56]}  O-O {[%clk 0:02:55]} 8. Bd3 {[%clk 0:02:56]}  Bg4 {[%clk 0:02:53]} 9. Be2 {[%clk 0:02:55]}  Nc6 {[%clk 0:02:53]} 10. h3 {[%clk 0:02:47]}  Bf5 {[%clk 0:02:50]} 11. d5 {[%clk 0:02:45]}  Nb4 {[%clk 0:02:45]} 12. Nd4 {[%clk 0:02:43]}  Ne4 {[%clk 0:02:23]} 13. Nxf5 {[%clk 0:01:49]}  Nxc3 {[%clk 0:02:21]} 14. bxc3 {[%clk 0:01:49]}  Rxf5 {[%clk 0:02:20]} 15. O-O {[%clk 0:01:29]}  Na6 {[%clk 0:02:16]} 16. Bg4 {[%clk 0:01:22]}  Rf8 {[%clk 0:02:14]} 17. Be3 {[%clk 0:01:21]}  Nc5 {[%clk 0:01:39]} 18. Bd4 {[%clk 0:01:09]}  Bf6 {[%clk 0:01:13]} 19. Qe2 {[%clk 0:01:05]}  b6 {[%clk 0:01:11]} 20. Rae1 {[%clk 0:01:04]}  Qe8 {[%clk 0:00:44]} 21. f4 {[%clk 0:00:56]}  Bh4 {[%clk 0:00:27]} 22. g3 {[%clk 0:00:38]}  Bxg3 {[%clk 0:00:24]} 23. Qxe7 {[%clk 0:00:37]}  Qxe7 {[%clk 0:00:19]} 24. Rxe7 {[%clk 0:00:35]}  Rf7 {[%clk 0:00:20]} 25. Rxf7 {[%clk 0:00:26]}  Kxf7 {[%clk 0:00:21]} 26. Kg2 {[%clk 0:00:24]}  Bh4 {[%clk 0:00:20]} 27. f5 {[%clk 0:00:24]}  Re8 {[%clk 0:00:14]} 28. fxg6+ {[%clk 0:00:21]}  Kxg6 {[%clk 0:00:15]} 29. Bd1 {[%clk 0:00:17]}  Re7 {[%clk 0:00:09]} 30. Bc2+ {[%clk 0:00:17]}  Kh6 {[%clk 0:00:09]} 31. Bd1 {[%clk 0:00:07]}  Nd3 {[%clk 0:00:07]} 32. Kh2 {[%clk 0:00:04]}  Ne5 {[%clk 0:00:06]} 33. Rf4 {[%clk 0:00:02]}  Bg5 {[%clk 0:00:06]} 34. Rf5 {[%clk 0:00:03]}  Nxc4 {[%clk 0:00:04]} 35. h4 {[%clk 0:00:03]}  Be3 {[%clk 0:00:03]} 36. Rh5+ {[%clk 0:00:03]}  Kg6 {[%clk 0:00:04]} 37. Bxe3 {[%clk 0:00:02]}  Nxe3 {[%clk 0:00:04]} 38. Rg5+ {[%clk 0:00:03]}  Kf6 {[%clk 0:00:05]} 39. Bf3 {[%clk 0:00:03]}  Re5 {[%clk 0:00:05]} 40. Rg8 {[%clk 0:00:03]}  Nxd5 {[%clk 0:00:05]} 41. Rh8 {[%clk 0:00:03]}  Kg7 {[%clk 0:00:05]} 42. Rc8 {[%clk 0:00:03]}  c5 {[%clk 0:00:06]} 43. Ra8 {[%clk 0:00:03]}  Nxc3 {[%clk 0:00:06]} 44. Rxa7+ {[%clk 0:00:04]}  Kg6 {[%clk 0:00:06]} 45. Rb7 {[%clk 0:00:04]}  b5 {[%clk 0:00:06]} 46. Rb6 {[%clk 0:00:04]}  Re6 {[%clk 0:00:07]} 47. Bg4 {[%clk 0:00:05]}  Rf6 {[%clk 0:00:07]} 48. Kg3 {[%clk 0:00:05]}  Ne4+ {[%clk 0:00:07]} 49. Kh3 {[%clk 0:00:05]}  Nf2+ {[%clk 0:00:08]} 50. Kg3 {[%clk 0:00:06]}  Nxg4 {[%clk 0:00:09]} 51. Kxg4 {[%clk 0:00:07]}  h5+ {[%clk 0:00:09]} 52. Kg3 {[%clk 0:00:07]}  b4 {[%clk 0:00:10]} 53. Rb8 {[%clk 0:00:07]}  Kf5 {[%clk 0:00:11]} 54. Kf3 {[%clk 0:00:07]}  Ke5+ {[%clk 0:00:11]} 55. Ke3 {[%clk 0:00:08]}  Rg6 {[%clk 0:00:11]} 56. Re8+ {[%clk 0:00:07]}  Kd5 {[%clk 0:00:12]} 57. Re4 {[%clk 0:00:07]}  Rg3+ {[%clk 0:00:12]} 0-1


[Site "https://www.chess.com"]

[Event "Titled Tuesday Blitz February 15 Early 2022"]
[White "Buscar, Michael"]
[Black "Ljukin, Sergei"]
[WhiteFideId "2603616"]
[BlackFideId "14102200"]
[WhiteElo "2010"]
[BlackElo "2312"]
[Result "0-1"]
[Round "04"]
[TimeControl "180+1"]
[Date "2022.02.15"]
[WhiteClock "0:00:11"]
[BlackClock "0:00:08"]

1. c4 {[%clk 0:02:58]}  c6 {[%clk 0:02:59]} 2. g3 {[%clk 0:02:56]}  d5 {[%clk 0:02:59]} 3. Bg2 {[%clk 0:02:56]}  Nf6 {[%clk 0:03:00]} 4. cxd5 {[%clk 0:02:51]}  cxd5 {[%clk 0:02:59]} 5. b3 {[%clk 0:02:49]}  Nc6 {[%clk 0:02:59]} 6. Bb2 {[%clk 0:02:50]}  e5 {[%clk 0:02:59]} 7. d3 {[%clk 0:02:50]}  Bd6 {[%clk 0:02:57]} 8. Nf3 {[%clk 0:02:50]}  h6 {[%clk 0:02:56]} 9. O-O {[%clk 0:02:49]}  O-O {[%clk 0:02:56]} 10. Nc3 {[%clk 0:02:46]}  Be6 {[%clk 0:02:55]} 11. Nb5 {[%clk 0:02:46]}  Bb8 {[%clk 0:02:54]} 12. Ba3 {[%clk 0:02:46]}  Re8 {[%clk 0:02:53]} 13. Qd2 {[%clk 0:02:40]}  d4 {[%clk 0:02:32]} 14. Bb2 {[%clk 0:02:21]}  Bd5 {[%clk 0:02:26]} 15. Rac1 {[%clk 0:02:13]}  a6 {[%clk 0:02:20]} 16. Na3 {[%clk 0:02:11]}  b5 {[%clk 0:02:20]} 17. Nc2 {[%clk 0:02:02]}  Bd6 {[%clk 0:02:13]} 18. e4 {[%clk 0:01:43]}  Be6 {[%clk 0:01:58]} 19. Nh4 {[%clk 0:01:29]}  Qb6 {[%clk 0:01:53]} 20. f4 {[%clk 0:01:24]}  Ng4 {[%clk 0:01:51]} 21. f5 {[%clk 0:01:19]}  Bd7 {[%clk 0:01:47]} 22. f6 {[%clk 0:01:09]}  Ne3 {[%clk 0:01:05]} 23. Rf3 {[%clk 0:00:55]}  g6 {[%clk 0:00:55]} 24. Nxe3 {[%clk 0:00:46]}  dxe3 {[%clk 0:00:54]} 25. Qxe3 {[%clk 0:00:46]}  Qxe3+ {[%clk 0:00:51]} 26. Rxe3 {[%clk 0:00:46]}  Rac8 {[%clk 0:00:48]} 27. Ree1 {[%clk 0:00:37]}  Nb4 {[%clk 0:00:48]} 28. Bf1 {[%clk 0:00:30]}  Nxa2 {[%clk 0:00:42]} 29. Ra1 {[%clk 0:00:29]}  Nb4 {[%clk 0:00:41]} 30. Ba3 {[%clk 0:00:23]}  a5 {[%clk 0:00:38]} 31. Rac1 {[%clk 0:00:21]}  Bf8 {[%clk 0:00:29]} 32. Nf3 {[%clk 0:00:19]}  Nc2 {[%clk 0:00:28]} 33. Bxf8 {[%clk 0:00:14]}  Nxe1 {[%clk 0:00:28]} 34. Rxe1 {[%clk 0:00:12]}  Kxf8 {[%clk 0:00:27]} 35. d4 {[%clk 0:00:11]}  exd4 {[%clk 0:00:25]} 36. Nxd4 {[%clk 0:00:12]}  a4 {[%clk 0:00:20]} 37. Rb1 {[%clk 0:00:09]}  Rb8 {[%clk 0:00:16]} 38. Bd3 {[%clk 0:00:07]}  a3 {[%clk 0:00:14]} 39. b4 {[%clk 0:00:07]}  Be6 {[%clk 0:00:13]} 40. Bxb5 {[%clk 0:00:06]}  Red8 {[%clk 0:00:13]} 41. Nc6 {[%clk 0:00:05]}  a2 {[%clk 0:00:11]} 42. Ra1 {[%clk 0:00:05]}  Rxb5 {[%clk 0:00:10]} 43. Nxd8 {[%clk 0:00:05]}  Bb3 {[%clk 0:00:09]} 44. Nc6 {[%clk 0:00:05]}  Rb6 {[%clk 0:00:09]} 45. Nd4 {[%clk 0:00:06]}  Bc4 {[%clk 0:00:10]} 46. Nc2 {[%clk 0:00:05]}  Rd6 {[%clk 0:00:10]} 47. b5 {[%clk 0:00:03]}  Rd2 {[%clk 0:00:09]} 48. Rc1 {[%clk 0:00:01]}  Rxc2 {[%clk 0:00:09]} 49. Rxc2 {[%clk 0:00:02]}  a1=Q+ {[%clk 0:00:09]} 50. Kf2 {[%clk 0:00:03]}  Bxb5 {[%clk 0:00:08]} 51. Ke3 {[%clk 0:00:03]}  Be8 {[%clk 0:00:09]} 52. Rd2 {[%clk 0:00:03]}  Qa7+ {[%clk 0:00:09]} 53. Kf3 {[%clk 0:00:03]}  Qb6 {[%clk 0:00:09]} 54. e5 {[%clk 0:00:03]}  Qe6 {[%clk 0:00:09]} 55. Ke4 {[%clk 0:00:04]}  Bc6+ {[%clk 0:00:08]} 56. Kf4 {[%clk 0:00:04]}  g5+ {[%clk 0:00:08]} 57. Ke3 {[%clk 0:00:04]}  Qxe5+ {[%clk 0:00:08]} 58. Kf2 {[%clk 0:00:05]}  Qxf6+ {[%clk 0:00:08]} 59. Ke3 {[%clk 0:00:05]}  Qe5+ {[%clk 0:00:08]} 60. Kd3 {[%clk 0:00:06]}  Be4+ {[%clk 0:00:07]} 61. Ke3 {[%clk 0:00:06]}  f5 {[%clk 0:00:07]} 62. Re2 {[%clk 0:00:06]}  f4+ {[%clk 0:00:07]} 63. gxf4 {[%clk 0:00:07]}  gxf4+ {[%clk 0:00:08]} 64. Kf2 {[%clk 0:00:07]}  Qd4+ {[%clk 0:00:07]} 65. Kf1 {[%clk 0:00:08]}  Bd3 {[%clk 0:00:07]} 66. Ke1 {[%clk 0:00:08]}  Bxe2 {[%clk 0:00:07]} 67. Kxe2 {[%clk 0:00:09]}  Qe3+ {[%clk 0:00:08]} 68. Kf1 {[%clk 0:00:10]}  f3 {[%clk 0:00:08]} 69. h3 {[%clk 0:00:10]}  Qe2+ {[%clk 0:00:08]} 70. Kg1 {[%clk 0:00:11]}  Qg2# {[%clk 0:00:08]} 0-1


[Site "https://www.chess.com"]

[Event "Titled Tuesday Blitz February 15 Early 2022"]
[White "Ceres, Dragos"]
[Black "Nesterov, Arseniy"]
[WhiteFideId "13905864"]
[BlackFideId "24198455"]
[WhiteElo "2072"]
[BlackElo "2489"]
[Result "0-1"]
[Round "04"]
[TimeControl "180+1"]
[Date "2022.02.15"]
[WhiteClock "0:00:14"]
[BlackClock "0:00:51"]

1. e4 {[%clk 0:03:00]}  e5 {[%clk 0:03:00]} 2. Nf3 {[%clk 0:02:59]}  Nc6 {[%clk 0:03:00]} 3. Bc4 {[%clk 0:02:59]}  Nf6 {[%clk 0:03:00]} 4. O-O {[%clk 0:02:49]}  Nxe4 {[%clk 0:02:41]} 5. d4 {[%clk 0:02:46]}  d5 {[%clk 0:02:39]} 6. Bb5 {[%clk 0:02:29]}  exd4 {[%clk 0:02:35]} 7. Nxd4 {[%clk 0:02:21]}  Bd7 {[%clk 0:02:32]} 8. Nxc6 {[%clk 0:02:13]}  bxc6 {[%clk 0:02:31]} 9. Bd3 {[%clk 0:02:12]}  Nc5 {[%clk 0:02:18]} 10. Re1+ {[%clk 0:02:08]}  Be7 {[%clk 0:02:11]} 11. Bg5 {[%clk 0:01:45]}  Be6 {[%clk 0:02:08]} 12. Bxe7 {[%clk 0:01:43]}  Qxe7 {[%clk 0:02:09]} 13. Nc3 {[%clk 0:01:34]}  O-O {[%clk 0:02:06]} 14. Ne2 {[%clk 0:00:59]}  Qf6 {[%clk 0:02:03]} 15. Nd4 {[%clk 0:00:55]}  g6 {[%clk 0:02:03]} 16. c3 {[%clk 0:00:54]}  Bg4 {[%clk 0:01:53]} 17. Qd2 {[%clk 0:00:47]}  Nxd3 {[%clk 0:01:39]} 18. Qxd3 {[%clk 0:00:48]}  c5 {[%clk 0:01:39]} 19. Ne2 {[%clk 0:00:30]}  c6 {[%clk 0:01:38]} 20. Ng3 {[%clk 0:00:26]}  Rab8 {[%clk 0:01:36]} 21. b3 {[%clk 0:00:25]}  Rfe8 {[%clk 0:01:27]} 22. h3 {[%clk 0:00:25]}  Bd7 {[%clk 0:01:26]} 23. Rac1 {[%clk 0:00:22]}  h5 {[%clk 0:01:23]} 24. Rxe8+ {[%clk 0:00:18]}  Rxe8 {[%clk 0:01:23]} 25. Qa6 {[%clk 0:00:19]}  h4 {[%clk 0:01:16]} 26. Qxa7 {[%clk 0:00:18]}  hxg3 {[%clk 0:01:14]} 27. fxg3 {[%clk 0:00:17]}  Bf5 {[%clk 0:01:12]} 28. Qxc5 {[%clk 0:00:16]}  Re2 {[%clk 0:01:09]} 29. Rf1 {[%clk 0:00:14]}  Qe5 {[%clk 0:01:06]} 30. g4 {[%clk 0:00:13]}  Qg3 {[%clk 0:01:01]} 31. Rf2 {[%clk 0:00:14]}  Re1+ {[%clk 0:01:01]} 32. Rf1 {[%clk 0:00:14]}  Be4 {[%clk 0:01:01]} 33. Qf2 {[%clk 0:00:14]}  Rxf1+ {[%clk 0:00:58]} 34. Kxf1 {[%clk 0:00:15]}  Qxc3 {[%clk 0:00:58]} 35. Qb6 {[%clk 0:00:13]}  Qa1+ {[%clk 0:00:56]} 36. Kf2 {[%clk 0:00:13]}  Qxa2+ {[%clk 0:00:56]} 37. Ke3 {[%clk 0:00:14]}  Qxg2 {[%clk 0:00:51]} 38. Qxc6 {[%clk 0:00:14]} 0-1


[Site "https://www.chess.com"]